Cogmind - Beta 16 --- EXPLORER MODE // 2025.11.13 @ 17:00:35 Player: K.K.Y. Result: Destroyed by 2C-W6O(R) with Subdweller Laser Performance ------------- Evolutions (0) 0 Regions Visited (2) 400 Robots Destroyed (8) 40 Value Destroyed (139) 139 Prototype IDs (1) 20 Alien Tech Used (0) 0 Bonus (0) 0 TOTAL SCORE: 599 Bonus ------- None Cogmind --------- Core Integrity 0/250 Matter 300/300 Energy 98/100 System Corruption 3% Temperature Cool (6) Movement Core (200) Ox3 Location -10/Subcaves Parts ------- > --- POWER (1) -------- (None) > --- PROPULSION (3) --- (None) > --- UTILITY (2) ------ Medium Storage Unit > --- WEAPON (2) ------- (None) > --- INVENTORY (10) --- Medium Armor Plating Peak State ------------ > --- POWER ------------ Heavy Ion Engine > --- PROPULSION ------- Aluminum Leg Aluminum Leg Aluminum Leg > --- UTILITY ---------- Medium Storage Unit Medium Armor Plating > --- WEAPON ----------- EM Pulse Gun > --- INVENTORY -------- Medium Armor Plating [Rating: 10] Favorites ----------- Power Heavy Ion Engine Engine Heavy Ion Engine Propulsion Aluminum Leg Leg Aluminum Leg Utility Medium Storage Unit Storage Medium Storage Unit Processor Signal Interpreter Protection Medium Armor Plating Weapon EM Pulse Gun Energy Gun EM Pulse Gun Build | -11 -10 -10 ------- Run | Yrd Mat Sub Slots Evolved 1 | . 1 . Power . | . . . Propulsion 1 | . 1 . Utility . | . . . Weapon . | . . . Parts Attached 9 | 6 3 . Power 2 | 1 1 . Engine 2 | 1 1 . Core . | . . . Reactor . | . . . Propulsion 3 | 2 1 . Treads . | . . . Leg 3 | 2 1 . Wheel . | . . . Hover . | . . . Flight . | . . . Utility 3 | 2 1 . Device . | . . . Storage 1 | 1 . . Processor 1 | 1 . . Hackware . | . . . Protection 1 | . 1 . Artifact . | . . . Weapon 1 | 1 . . Energy Gun 1 | 1 . . Energy Cannon . | . . . Ballistic Gun . | . . . Ballistic Cannon . | . . . Launcher . | . . . Special Weapon . | . . . Impact Weapon . | . . . Slashing Weapon . | . . . Piercing Weapon . | . . . Special Melee Weapon . | . . . Unidentified Prototypes 1 | . 1 . Parts Lost 6 | . . 6 Power 1 | . . 1 Propulsion 3 | . . 3 Utility 1 | . . 1 Weapon 1 | . . 1 Highest Loss Streak 3 | . . 3 To Critical Strikes . | . . . Average Backups . | 1 . 1 Power . | . . . Propulsion . | . . . Utility . | . . 1 Weapon . | . . . Tool/Special . | . . . Unused Backups 1 | . . 1 Power . | . . . Propulsion . | . . . Utility 1 | . . 1 Weapon . | . . . Tool/Special . | . . . Average Slot Usage (%) 76 | . 86 53 Engine 11 | . 12 10 Leg 31 | . 36 20 Storage 12 | . 12 12 Processor 3 | . 4 . Protection 7 | . 7 6 Energy Gun 9 | . 12 1 Peak Build Rating 10 | 6 10 10 Average Rating 7 | 3 8 6 On Entrance 5 | . 6 10 Avg Prop Armor Cover (%) . | . . . Naked Turns . | . . . Heaviest Build 27 | 17 27 27 Greatest Support 30 | 20 30 30 Greatest Overweight (x) 5 | . . 5 Average Overweight (x) . | . . 1 Largest Inventory Capacity 10 | 10 10 10 Average Capacity 9 | 7 10 10 Most Carried 5 | 5 2 1 Average Carried . | 1 . 1 Final Capacity 10 | 10 10 10 Final Carried 1 | . 1 1 Class Distribution -------------------- 100% | Hacker-Mutant Dominant Class ---------------- Hacker-Mutant | -10/Materials Hacker-Mutant | -10/Subcaves Resources | -11 -10 -10 ----------- Run | Yrd Mat Sub Matter Collected 293 | 185 105 3 Remotely . | . . . Salvage Created 250 | . 250 . Parts 17 | . 17 . Haulers Intercepted 1 | . 1 . Recyclers Shooed . | . . . Parts Field Recycled . | . . . Retrieved Matter . | . . . Parts Self-Destructed . | . . . Prevented . | . . . Parts Restored . | . . . Kills | -11 -10 -10 ------- Run | Yrd Mat Sub Combat Hostiles Destroyed 6 | . 6 . Guns 5 | . 5 . Classes Destroyed 4 | . 4 . Hauler 1 | . 1 . Watcher 1 | . 1 . Swarmer 4 | . 4 . Grunt 2 | . 2 . Best Kill Streak 3 | . 3 . Combat Bots Only 2 | . 2 . Max Kills in Single Turn 1 | . 1 . Gunslinging . | . . . Exploded . | . . . Melee . | . . . Uniques/NPCs Destroyed . | . . . Combat | -11 -10 -10 -------- Run | Yrd Mat Sub Hostile Shots Fired 143 | . 53 90 Missed 51 | . 20 31 Hits 92 | . 33 59 Projectile 92 | . 33 59 Damage Taken 940 | . 175 765 Core 253 | . 20 233 Absorbed by Shields . | . . . Ignored by Resistances 588 | . 128 460 Core Remaining (%) 100 | 100 . . Volleys Fired 50 | . 46 4 Largest 1 | . 1 1 Hottest 40 | . 40 40 Shots Fired 50 | . 46 4 Gun 50 | . 46 4 Cannon . | . . . Launcher . | . . . Special . | . . . Kinetic . | . . . Thermal . | . . . Explosive . | . . . Electromagnetic 50 | . 46 4 Robot Hit Streak 14 | . 14 5 Robot Miss Streak 2 | . 2 . Penetration Max . | . . . Secondary Targets . | . . . Shots Hit Robots 39 | . 35 4 Core Hits 17 | . 10 7 Critical Kills . | . . . Critical Parts Destroyed . | . . . Critical Strikes 2 | . 2 . Corrupt 2 | . 2 . Melee Attacks . | . . . Impact . | . . . Slashing . | . . . Piercing . | . . . Sneak Attacks . | . . . Combat Hostiles . | . . . Follow-up Attacks . | . . . Damage Inflicted 651 | . 488 163 Guns 531 | . 488 43 Cannons . | . . . Explosions . | . . . Melee . | . . . Ramming 120 | . . 120 Kinetic . | . . . Thermal . | . . . Explosive . | . . . Electromagnetic 531 | . 488 43 Impact . | . . . Slashing . | . . . Piercing . | . . . Highest Corruption 3 | . 1 3 Average Corruption 1 | . 1 1 Corruption Purged . | . . . Corruption Blocked . | . . . Effects 3 | . 1 2 Message Errors 1 | . 1 . Matter Fused 1 | . . 1 Energy Discharges 1 | . . 1 Overload Shots . | . . . Overflow Damage . | . . . Projectiles . | . . . Explosions . | . . . Melee . | . . . Knockbacks 2 | . . 2 Impact 2 | . . 2 Kinetic . | . . . Secondary . | . . . Self-Inflicted Damage . | . . . Shots . | . . . Rammed 12 | . . 12 Targets Rammed 65 | . . 65 Kicked 53 | . . 53 Crushed . | . . . Highest Temperature 64 | . 64 . Average Temperature 20 | . 20 . Received Heat Transfer 402 | . 48 354 Siege Activations . | . . . Martial Activations . | . . . Shielding Activations . | . . . Robots Disrupted . | . . . Combat Hostiles . | . . . Robots Corrupted 1 | . 1 . Combat Hostiles 1 | . 1 . Parts Fried 2 | . 2 . Impact Corruptions . | . . . Robots Melted . | . . . Combat Hostiles . | . . . Parts Melted . | . . . Heat Transferred . | . . . Parts Sabotaged . | . . . Parts Stolen . | . . . Parts Stripped . | . . . Power Chain Reactions . | . . . Alert | -11 -10 -10 ------- Run | Yrd Mat Sub Maximum Alert Level . | . . . Low Security (%) 100 | 100 100 . Level 1 . | . . . Level 2 . | . . . Level 3 . | . . . Level 4 . | . . . Level 5 . | . . . High Security . | . . . Max Security . | . . . Peak Influence 50 | . 50 . Initial . | . . . Average 9 | . 10 . Influence Increases 164 | . 164 . Destroy 0b10 Robot/C 120 | . 120 . Destroy 0b10 Robot/NC 10 | . 10 . Destroy Leader 34 | . 34 . Influence Decreases 164 | . 164 . Time Decay 164 | . 164 . Squads Dispatched . | . . . Investigation . | . . . Extermination . | . . . Reinforcement . | . . . Assault . | . . . Garrison . | . . . Intercept . | . . . Searches Triggered . | . . . Construction Impeded . | . . . Haulers Reinforced . | . . . Active Scanning Responses . | . . . Cargo Convoy Interrupts . | . . . Stealth | -11 -10 -10 --------- Run | Yrd Mat Sub Distress Signals 1 | . 1 . Communications Jammed . | . . . Distress Signals . | . . . Times Spotted 14 | . 12 2 Peak Tracking Total 4 | . 4 2 Tactical Retreats . | . . . Traps | -11 -10 -10 ------- Run | Yrd Mat Sub Traps Triggered 1 | . 1 . Indirectly . | . . . Trap Hack Attempts . | . . . Triggered . | . . . Disarmed . | . . . Reprogrammed . | . . . Reused . | . . . Traps Extracted . | . . . Installed . | . . . Triggered . | . . . Machines | -11 -10 -10 ---------- Run | Yrd Mat Sub Machines Disabled . | . . . Max in Single Turn . | . . . Machines Repaired . | . . . Machines Dismantled . | . . . Machines Sabotaged . | . . . Overloaded Fab Kills . | . . . Hacking | -11 -10 -10 --------- Run | Yrd Mat Sub Machines Accessed . | . . . Terminals . | . . . Fabricators . | . . . Repair Stations . | . . . Recycling Units . | . . . Scanalyzers . | . . . Garrison Access . | . . . Total Hacks . | . . . Successful . | . . . Failed . | . . . Catastrophic . | . . . Database Lockouts . | . . . Manual . | . . . Terminals . | . . . Fabricators . | . . . Repair Stations . | . . . Recycling Units . | . . . Scanalyzers . | . . . Garrison Access . | . . . Terminal Hacks . | . . . Fabricator Hacks . | . . . Repair Station Hacks . | . . . Recycling Unit Hacks . | . . . Scanalyzer . | . . . Garrison Access Hacks . | . . . Unauthorized Hacks . | . . . Terminals . | . . . Fabricators . | . . . Repair Stations . | . . . Recycling Units . | . . . Scanalyzers . | . . . Garrison Access . | . . . Data Cores Recovered . | . . . Used . | . . . Hacking Detections . | . . . Full Trace Events . | . . . Feedback Events . | . . . Feedback Blocked . | . . . Robot Schematics Acquired . | . . . Robots Built . | . . . Authchips . | . . . Time . | . . . Total Robot Build Rating . | . . . Part Schematics Acquired . | . . . Parts Built . | . . . Authchips . | . . . Time . | . . . Total Part Build Rating . | . . . Part Studies Acquired . | . . . Parts Repaired . | . . . Time . | . . . Parts Recycled . | . . . Recycled Matter . | . . . Retrieved Matter . | . . . Retrieved Components . | . . . Parts Scanalyzed . | . . . Part Schematics Acquired . | . . . Parts Damaged . | . . . Bothacking | -11 -10 -10 ------------ Run | Yrd Mat Sub Used RIF Installer . | . . . Robots Hacked . | . . . Non-combat . | . . . Combat . | . . . Robot Hacks Applied . | . . . Relay Couplers Released . | . . . Fabnet Peak Effective % . | . . . Robots Rewired . | . . . Allies Hacked . | . . . Hacks Repelled . | . . . Allies | -11 -10 -10 -------- Run | Yrd Mat Sub Total Allies . | . . . Largest Group . | . . . Highest-Rated Group . | . . . Highest-Rated Ally . | . . . Total Orders . | . . . Ally Attacks . | . . . Total Damage . | . . . Kills . | . . . Allies Corrupted . | . . . Allies Melted . | . . . Intel | -11 -10 -10 ------- Run | Yrd Mat Sub Active Infowar (turns) . | . . . Robot Analysis Total . | . . . Derelict Logs Recovered . | . . . Drone Launches . | . . . Drone Recoveries . | . . . Exploration | -11 -10 -10 ------------- Run | Yrd Mat Sub Turns Passed 679 | 48 450 181 Spaces Moved 292 | 45 216 31 Core 32 | 24 . 8 Treads . | . . . Legs 260 | 21 216 23 Wheels . | . . . Hover . | . . . Flight . | . . . Fastest Speed 50 | 50 120 120 Average Speed 118 | 82 120 157 Slowest Speed 300 | 120 120 300 Overloaded Moves . | . . . Propulsion Burnouts . | . . . Robots Hopped . | . . . Potential Cave-ins . | . . . Cave-ins Triggered . | . . . Exploration Rate (%) 22 | 4 59 3 Regions Visited 2 Branch Regions 1 Pre-discovered Areas . | . . . Known Exits Taken 2 | 1 1 . Unknown Exits Taken . | . . . Scrap Searched . | . . . Spaces Dug . | . . . Terrain Destroyed . | . . . Melee . | . . . Projectile . | . . . AOE . | . . . Terrain Rammed . | . . . Walls Destroyed . | . . . Machines Disabled . | . . . Actions | -11 -10 -10 --------- Run | Yrd Mat Sub Total 528 | 55 362 111 Wait 102 | . 91 11 Move 290 | 44 215 31 Hop . | . . . Pick Up 9 | 5 4 . Fast Attach 1 | 1 . . Attach 8 | 5 3 . Detach 2 | . 2 . Swap . | . . . Drop 1 | . 1 . Fire 50 | . 46 4 Melee . | . . . Ram 12 | . . 12 Kick 53 | . . 53 Crush . | . . . Escape Stasis . | . . . Rewire . | . . . Trap . | . . . Miscellaneous . | . . . Route ------- -11/Scrapyard -10/Materials (discovered 3 exits: *Mat / *Min / *Sub) -10/Subcaves History --------- Turn | Location | Event 4 | -11/Scrapyard | Identified exit to Materials 4 | -11/Scrapyard | Discovered exit to Materials (range 16) 49 | -11/Scrapyard | Entered Materials 49 | -10/Materials | Evolved 1 slot: Propulsion x1 147 | -10/Materials | Identified exit to Mines 147 | -10/Materials | Discovered exit to Mines (range 7) 301 | -10/Materials | Build established: Hacker-Mutant 393 | -10/Materials | Identified exit to Materials 393 | -10/Materials | Discovered exit to Materials (range 13) 470 | -10/Materials | Identified exit to Subcaves 470 | -10/Materials | Discovered exit to Subcaves (range 7) 499 | -10/Materials | Entered Subcaves 500 | -10/Subcaves | Approached by a straggling Scientist 609 | -10/Subcaves | Core integrity fell below 50% 657 | -10/Subcaves | Lost 3 parts (2n1u) 661 | -10/Subcaves | Core integrity fell below 20% 680 | -10/Subcaves | Destroyed by 2C-W6O(R) with Subdweller Laser Last Messages --------------- 00610_ Kicked 2C-W6O(R) out of the way. 00611_ Kicked 2C-W6O(R). 00612_ Aluminum Leg destroyed. 00612_ Kicked 2C-W6O(R) out of the way. 00616_ Kicked 2C-W6O(R). 00621_ Subatomizers dissect the Wheel. 00621_ Kicked 2C-W6O(R). 00626_ Aluminum Leg destroyed. 00627_ Slammed into 2C-W6O(R). 00636_ Subatomizers dissect the Lgt. Ion Engine. 00636_ Slammed into 2C-W6O(R). 00646_ Subatomizers dissect the Lgt. Ion Engine. 00654_ Slammed into 2C-W6O(R). 00654_ Destabilizing: System corrupted (+2). 00659_ Subatomizers dissect the Lgt. Ion Engine. 00660_ Slammed into 2C-W6O(R). 00666_ Hvy. Ion Engine destroyed. 00670_ Slammed into 2C-W6O(R). 00674_ System corrupted: Energy discharge (-30). 00678_ Slammed into 2C-W6O(R). Map ----- +----------------------------------------------------+ | ?????????????????????????????????????????????????? | | ?????????????????????????????????????????????????? | | ?????????????????????????????????????????????????? | | ?????????????????????????????????????????????????? | | ?????????????????????????????????????????????????? | | ?????????????????????????????????????????????????? | | ?????????????????????????????????????????????????? | | ?????????????????????????????????????????????????? | | ???????????????????????????? #??????????????????? | | ??????????????????????????? ##????????????????? | | ?????????????????####?????? ?????????????????? | | ?????????????????# #????# ?????????????????? | | ?????????????????# #### ??????????????????? | | ?????????????????# ???????????????????? | | ????????????????## #???????????????????? | | ??????????????### ????????????????????? | | ??????????????? ?????????????????????? | | ????????????????? ??????????????????????? | | ?????????????????? #??????????????????????? | | ???????????????????? #??????????????????????? | | ?????????????????????# #??????#???? ?????????? | | ?????????????????????# %% #????? ### ???????????? | | ?????????????????????# %%%##??? """??????????? | | ?????????????????????##%%%%### ??????????? | | ??????????????????????#%%% # "" #?????????????? | | ??????????????????????#%%@R " #??????????????? | | ?????????????????????##%%%% ""#??????????????? | | ?????????????????????# %### "#??????????????? | | ?????????????????????# *%#??# "#?????????????? | | ?????????????????????# %##??? " ???????????? | | ????????????????????## =#????? "" ??????????? | | ???????????????????## ##???? ## "???????????? | | ???????????????????# #?????###??###??????????? | | ???????????????????# #??????????????????????? | | ???????????????????# #??????????????????????? | | ???????????????????#### ##??????????????????????? | | ??????????????????????####???????????????????????? | | ?????????????????????????????????????????????????? | | ?????????????????????????????????????????????????? | | ?????????????????????????????????????????????????? | | ?????????????????????????????????????????????????? | | ?????????????????????????????????????????????????? | | ?????????????????????????????????????????????????? | | ?????????????????????????????????????????????????? | | ?????????????????????????????????????????????????? | | ?????????????????????????????????????????????????? | | ?????????????????????????????????????????????????? | | ?????????????????????????????????????????????????? | | ?????????????????????????????????????????????????? | | ?????????????????????????????????????????????????? | +----------------------------------------------------+ Best States ------------- Heat Dissipation 25 Energy Generation 14 Energy Capacity 280 Matter Stores 300 Matter Capacity 300 Sight Range 16 Terrain Scan Density 10 Armor Coverage 225 Resistance: KI 35 Resistance: TH 35 Resistance: EX 35 Resistance: EM 35 Resistance: I 35 Resistance: S 35 Resistance: P 35 Evasion (%) 55 Offensive Hacking 20 Item Schematics ----------------- None Robot Schematics ------------------ None Fabricated ------------ Nothing Repaired ---------- Nothing Studied --------- None Alien Tech Used ----------------- None Achievements -------------- None Challenges ------------ None Game ------ Seed NodeTowerCannon Manual? 0 Play Time 00:05:53 Cumulative 88.9 hours Start 2025.11.13 @ 16:55:42 End 2025.11.13 @ 17:00:35 Sessions 1 Manual Loads 0 Difficulty Explorer Special Mode None Game No. 92 Rogue 0 Adventurer 0 Explorer 92 Win Type - Total 0 Types 0/0/0/0/0/0/0/0/0/0 Lore% 57 Gallery% 55 Achievement% 44 Wizard Run 0 Options --------- Layout 1 ASCII 0 Keyboard 0 Movement Mouse Keybinds 0 Fullscreen 1 Font 24/Smallcaps Map View 50x35 Zoom Use 0% Tactical HUD 1 Map Filters NONE Filters NONE Steam 1 RUN: 0bd60408-8c3d-48f1-8388-53c98dd1b1e7